fUST/lending_fUST_20250616
["ID","MTS","AMOUNT","RATE_DAILY","PERIOD"]
[366094316,1750059772737,-460.0,0.00021917,4]
[366094317,1750059772762,-460.0,0.00021917,4]
[366094318,1750059772786,-460.0,0.00021917,4]
[366094319,1750059772809,-460.0,0.00021917,4]
[366094320,1750059772833,-460.0,0.00021917,4]
[366094321,1750059772857,-434.71279783,0.00021917,4]
[366094322,1750059772880,-460.0,0.00021917,4]
[366094323,1750059772904,-460.0,0.00021917,4]
[366094324,1750059772929,-307.57001254,0.00021917,4]
[366094325,1750059772953,-440.0,0.00021917,4]
[366094326,1750059772978,-586.10282841,0.00021917,4]
[366094327,1750059773003,-460.0,0.00021917,4]
[366094328,1750059773028,-460.0,0.00021917,4]
[366094329,1750059773053,-460.0,0.00021917,4]
[366094330,1750059773076,-460.0,0.00021917,4]
[366094331,1750059773099,-460.0,0.00021917,4]
[366094332,1750059773123,-373.01304425,0.00021917,4]
[366094333,1750059773148,-460.0,0.00021917,4]
[366094334,1750059773171,-431.08777953,0.00021917,4]
[366094335,1750059773195,-460.0,0.00021917,4]
[366094336,1750059773218,-462.90829541,0.00021917,4]
[366094337,1750059773242,-437.04968891,0.00021917,4]
[366094338,1750059773270,-151.0,0.00021917,2]
[366094339,1750059773298,-460.0,0.00021917,4]
[366094340,1750059773325,-460.0,0.00021917,4]
[366094341,1750059773352,-460.0,0.00021917,4]
[366094342,1750059773376,-460.0,0.00021917,4]
[366094343,1750059773399,-432.39868925,0.00021917,4]
[366094344,1750059773424,-460.0,0.00021917,4]
[366094345,1750059773452,-444.52970269,0.00021917,4]
[366094346,1750059773490,-316.5706112,0.00021917,4]
[366094347,1750059773520,-460.0,0.00021917,4]
[366094348,1750059773556,-460.0,0.00021917,4]
[366094349,1750059773597,-460.0,0.00021917,4]
[366094350,1750059773634,-579.1,0.00021917,4]
[366094351,1750059773669,-460.0,0.00021917,4]
[366094352,1750059773701,-465.96679871,0.00021917,4]
[366094353,1750059773736,-460.0,0.00021917,4]
[366094354,1750059773770,-460.0,0.00021917,4]
[366094355,1750059773798,-464.38085466,0.00021917,4]
[366094356,1750059773827,-460.0,0.00021917,4]
[366094357,1750059773862,-513.34716463,0.00021917,4]
[366094358,1750059773899,-460.0,0.00021917,4]
[366094359,1750059773936,-460.0,0.00021917,4]
[366094360,1750059773967,-460.0,0.00021917,4]
[366094361,1750059774000,-460.0,0.00021917,4]
[366094362,1750059774037,-460.0,0.00021917,4]
[366094363,1750059774067,-460.0,0.00021917,4]
[366094364,1750059774100,-460.0,0.00021917,4]
[366094365,1750059774129,-460.0,0.00021917,4]
[366094366,1750059774159,-464.18859233,0.00021917,4]
[366094367,1750059774188,-460.0,0.00021917,4]
[366094368,1750059774219,-460.0,0.00021917,4]
[366094369,1750059774248,-460.0,0.00021917,4]
[366094370,1750059774280,-460.0,0.00021917,4]
[366094371,1750059774310,-460.0,0.00021917,4]
[366094372,1750059774339,-460.0,0.00021917,4]
[366094373,1750059774372,-460.0,0.00021917,4]
[366094374,1750059774403,-500.0,0.00021917,4]
[366094375,1750059774435,-500.0,0.00021917,4]
[366094376,1750059774466,-460.0,0.00021917,4]
[366094377,1750059774495,-432.18923227,0.00021917,4]
[366094378,1750059774527,-465.3,0.00021917,4]
[366094379,1750059774557,-477.30142086,0.00021917,4]
[366094380,1750059774588,-460.0,0.00021917,4]
[366094381,1750059774620,-273.98373427,0.00021917,4]
[366094382,1750059774650,-500.0,0.00021917,4]
[366094383,1750059774678,-460.0,0.00021917,4]
[366094384,1750059774708,-463.60467767,0.00021917,4]
[366094385,1750059774737,-460.0,0.00021917,4]
[366094386,1750059774766,-460.0,0.00021917,4]
[366094387,1750059774795,-150.35822956,0.00021917,4]
[366094388,1750059774824,-500.0,0.00021918,2]
[366094389,1750059774849,-500.0,0.00021918,2]
[366094390,1750059775079,-600.11768417,0.00021918,2]
[366094391,1750059775103,-1366.75948981,0.00021927,2]
[366094392,1750059775126,-151.0,0.00021941,7]
[366094393,1750059775150,-5000.0,0.00021941,2]
[366094394,1750059775175,-164.49478675,0.00021942,2]
[366094395,1750059775198,-500.0,0.0002195,2]
[366094396,1750059775220,-14955.95508698,0.00021952,2]
[366094397,1750059775247,-37942.78485135,0.00021952,2]
[366094398,1750059775274,-845.4146947,0.00021952,2]
[366094399,1750059775298,-12537.89035583,0.00021952,2]
[366094400,1750059775320,-499.63534473,0.00021971,2]
[366094401,1750059775343,-500.0,0.00021973,2]
[366094402,1750059775367,-500.0,0.00021973,2]
[366094403,1750059775389,-502.21576639,0.00021973,2]
[366094404,1750059775412,-503.92208925,0.00021973,2]
[366094405,1750059775435,-500.0,0.00021973,2]
[366094406,1750059775458,-500.0,0.00021973,2]
[366094407,1750059775480,-541.83808783,0.00021973,2]
[366094408,1750059775503,-506.25474159,0.00021973,2]
[366094409,1750059775525,-500.2604987,0.00021973,2]
[366094410,1750059775547,-500.0,0.00021973,2]
[366094411,1750059775571,-500.0,0.00021973,2]
[366094412,1750059775594,-500.0,0.00021973,2]
[366094413,1750059775618,-500.0,0.00021973,2]
[366094414,1750059775641,-502.58007341,0.00021973,2]
[366094415,1750059775664,-502.21511315,0.00021973,2]
[366094416,1750059775687,-616.84278252,0.00021973,2]
[366094417,1750059775709,-500.0,0.00021973,2]
[366094418,1750059775732,-500.0,0.00021973,2]
[366094419,1750059775755,-502.04338152,0.00021973,2]
[366094420,1750059775779,-500.0,0.00021973,2]
[366094421,1750059775801,-258.79652619,0.00021973,2]
[366094422,1750059775825,-151.0,0.00021973,7]
[366094423,1750059775848,-151.0,0.00021973,7]
[366094424,1750059775872,-151.0,0.00021973,7]
[366094425,1750059775895,-151.0,0.00021973,7]
[366094426,1750059775919,-151.0,0.00021973,7]
[366094427,1750059775943,-151.0,0.00021973,7]
[366094428,1750059775967,-151.0,0.00021973,7]
[366094429,1750059775994,-151.0,0.00021973,7]
[366094430,1750059776017,-151.0,0.00021973,7]
[366094431,1750059776041,-151.0,0.00021973,7]
[366094432,1750059776067,-332.016889,0.00021973,7]
[366094433,1750059776104,-332.016889,0.00021973,7]
[366094434,1750059776133,-151.0,0.00021973,7]
[366094435,1750059776310,3954.6108835,0.000219,2]
[366094436,1750059776340,460.0,0.00021917,4]
[366094437,1750059776375,460.0,0.00021917,4]
[366094438,1750059776630,544.91533997,0.00021916,2]
[366094439,1750059776663,544.91533997,0.00021916,2]
[366094440,1750059776699,544.91533997,0.00021916,2]
[366094441,1750059776744,544.91533997,0.00021916,2]
[366094442,1750059776782,544.91533997,0.00021916,2]
[366094443,1750059776818,544.91533997,0.00021916,2]
[366094444,1750059776853,544.91533997,0.00021916,2]
[366094445,1750059776889,544.91533997,0.00021916,2]
[366094446,1750059776971,544.91533997,0.00021916,2]
[366094447,1750059777045,544.91533997,0.00021916,2]
[366094450,1750059883251,168.480881,0.00013699,2]
[366094484,1750060232036,-352.84474931,0.0001908,2]
[366094486,1750060232046,-205.1564275,0.0001956,2]
[366094487,1750060232056,-2164.55293623,0.00019852,2]
[366094488,1750060232066,-306.8495946,0.00019917,2]
[366094489,1750060232076,-168.480881,0.00020187,2]
[366094490,1750060232085,-300.0,0.00020717,2]
[366094491,1750060232095,-202.0,0.00020717,2]
[366094492,1750060232104,-1200.0,0.00020717,2]
[366094493,1750060232114,-500.0,0.00020718,2]
[366094494,1750060232123,-916.82385337,0.00020718,2]
[366094495,1750060232132,-389.60732087,0.00020718,2]
[366094496,1750060232142,-916.82385337,0.00020718,2]
[366094497,1750060232153,-916.82385337,0.00020718,2]
[366094498,1750060232162,-916.82385337,0.00020718,2]
[366094499,1750060232172,-916.82385337,0.00020718,2]
[366094500,1750060232182,-916.82385337,0.00020718,2]
[366094501,1750060232191,-916.82385337,0.00020718,2]
[366094502,1750060232200,-916.82385337,0.00020718,2]
[366094503,1750060232210,-500.0,0.00020718,2]
[366094504,1750060232219,-500.0,0.00020718,2]
[366094505,1750060232229,-253.24622039,0.00020718,2]
[366094506,1750060232240,-501.69772517,0.00020718,2]
[366094507,1750060232250,-500.0,0.00020718,2]
[366094508,1750060232259,-540.71661974,0.00020718,2]
[366094509,1750060232269,-500.0,0.00020718,2]
[366094510,1750060232278,-500.0,0.00020718,2]
[366094512,1750060232288,-172.75182957,0.00020718,2]
[366094513,1750060232298,-540.71661974,0.00020718,2]
[366094514,1750060232308,-500.0,0.00020718,2]
[366094515,1750060232317,-500.0,0.00020718,2]
[366094516,1750060232327,-500.0,0.00020718,2]
[366094517,1750060232337,-540.71661974,0.00020718,2]
[366094518,1750060232347,-500.0,0.00020718,2]
[366094519,1750060232356,-540.71661974,0.00020718,2]
[366094520,1750060232366,-500.0,0.00020718,2]
[366094521,1750060232376,-540.71661974,0.00020718,2]
[366094522,1750060232385,-540.71661974,0.00020718,2]
[366094523,1750060232396,-500.0,0.00020718,2]
[366094524,1750060232409,-540.71661974,0.00020718,2]
[366094525,1750060232418,-500.0,0.00020718,2]
[366094526,1750060232427,-445.16492079,0.00020718,2]
[366094527,1750060232437,-540.71661974,0.00020718,2]
[366094528,1750060232460,-500.0,0.00020718,2]
[366094529,1750060232471,-500.0,0.00020718,2]
[366094530,1750060232481,-540.71661974,0.00020718,2]
[366094531,1750060232491,-500.0,0.00020718,2]
[366094532,1750060232501,-540.71661974,0.00020718,2]
[366094533,1750060232511,-500.0,0.00020718,2]
[366094534,1750060232520,-540.71661974,0.00020718,2]
[366094535,1750060232530,-500.0,0.00020718,2]
[366094536,1750060232541,-540.71661974,0.00020718,2]
[366094537,1750060232552,-500.0,0.00020718,2]
[366094538,1750060232562,-540.71661974,0.00020718,2]
[366094539,1750060232574,-500.0,0.00020718,2]
[366094540,1750060232584,-540.71661974,0.00020718,2]
[366094541,1750060232594,-500.0,0.00020718,2]
[366094542,1750060232603,-540.71661974,0.00020718,2]
[366094543,1750060232613,-500.0,0.00020718,2]
[366094545,1750060232623,-500.0,0.00020718,2]
[366094546,1750060232633,-540.71661974,0.00020718,2]
[366094547,1750060232644,-500.0,0.00020718,2]
[366094549,1750060232654,-540.71661974,0.00020718,2]
[366094551,1750060232664,-500.0,0.00020718,2]
[366094553,1750060232674,-540.71661974,0.00020718,2]
[366094555,1750060232684,-916.82385337,0.00020718,2]
[366094556,1750060232694,-540.71661974,0.00020718,2]
[366094558,1750060232711,-500.0,0.00020718,2]
[366094560,1750060232721,-540.71661974,0.00020718,2]
[366094562,1750060232731,-500.0,0.00020718,2]
[366094563,1750060232742,-540.71661974,0.00020718,2]
[366094565,1750060232752,-540.71661974,0.00020718,2]
[366094567,1750060232762,-500.0,0.00020718,2]
[366094569,1750060232772,-242.67863978,0.00020718,2]
[366094571,1750060232783,-540.71661974,0.00020718,2]
[366094573,1750060232793,-540.71661974,0.00020718,2]
[366094575,1750060232804,-540.71661974,0.00020718,2]
[366094578,1750060232815,-540.71661974,0.00020718,2]
[366094579,1750060232824,-540.71661974,0.00020718,2]
[366094581,1750060232834,-540.71661974,0.00020718,2]
[366094583,1750060232843,-540.71661974,0.00020718,2]
[366094585,1750060232854,-540.71661974,0.00020718,2]
[366094587,1750060232864,-540.71661974,0.00020718,2]
[366094588,1750060232873,-540.71661974,0.00020718,2]
[366094590,1750060232883,-540.71661974,0.00020718,2]
[366094592,1750060232893,-540.71661974,0.00020718,2]
[366094594,1750060232903,-540.71661974,0.00020718,2]
[366094596,1750060232912,-540.71661974,0.00020718,2]
[366094598,1750060232922,-540.71661974,0.00020718,2]
[366094600,1750060232932,-540.71661974,0.00020718,2]
[366094602,1750060232942,-540.71661974,0.00020718,2]
[366094604,1750060232953,-540.71661974,0.00020718,2]
[366094606,1750060232963,-540.71661974,0.00020718,2]
[366094608,1750060232973,-540.71661974,0.00020718,2]
[366094610,1750060232983,-540.71661974,0.00020718,2]
[366094612,1750060232994,-540.71661974,0.00020718,2]
[366094614,1750060233004,-540.71661974,0.00020718,2]
[366094616,1750060233014,-540.71661974,0.00020718,2]
[366094618,1750060233023,-540.71661974,0.00020718,2]
[366094620,1750060233034,-540.71661974,0.00020718,2]
[366094622,1750060233044,-540.71661974,0.00020718,2]
[366094624,1750060233054,-540.71661974,0.00020718,2]
[366094626,1750060233070,-540.71661974,0.00020718,2]
[366094628,1750060233081,-769.72289157,0.00020718,2]
[366094630,1750060233091,-769.72289157,0.00020718,2]
[366094632,1750060233102,-769.72289157,0.00020718,2]
[366094634,1750060233112,-769.72289157,0.00020718,2]
[366094636,1750060233122,-769.72289157,0.00020718,2]
[366094638,1750060233132,-769.72289157,0.00020718,2]
[366094640,1750060233143,-769.72289157,0.00020718,2]
[366094642,1750060233152,-769.72289157,0.00020718,2]
[366094644,1750060233163,-769.72289157,0.00020718,2]
[366094646,1750060233173,-769.72289157,0.00020718,2]
[366094648,1750060233184,-769.72289157,0.00020718,2]
[366094650,1750060233194,-769.72289157,0.00020718,2]
[366094652,1750060233204,-769.72289157,0.00020718,2]
[366094654,1750060233215,-769.72289157,0.00020718,2]
[366094656,1750060233225,-769.72289157,0.00020718,2]
[366094658,1750060233235,-769.72289157,0.00020718,2]
[366094660,1750060233245,-769.72289157,0.00020718,2]
[366094661,1750060233255,-769.72289157,0.00020718,2]
[366094663,1750060233266,-769.72289157,0.00020718,2]
[366094665,1750060233278,-769.72289157,0.00020718,2]
[366094667,1750060233288,-769.72289157,0.00020718,2]
[366094669,1750060233299,-769.72289157,0.00020718,2]
[366094671,1750060233311,-769.72289157,0.00020718,2]
[366094673,1750060233322,-928.28415154,0.00020718,2]
[366094675,1750060233332,-928.28415154,0.00020718,2]
[366094677,1750060233343,-769.72289157,0.00020718,2]
[366094679,1750060233353,-928.28415154,0.00020718,2]
[366094681,1750060233364,-769.72289157,0.00020718,2]
[366094683,1750060233374,-130.08172389,0.00020718,2]
[366094699,1750060233390,-639.64116768,0.00020718,2]
[366094701,1750060233552,-475.87653407,0.00020718,2]
[366094704,1750060233569,-452.40761747,0.00020718,2]
[366094705,1750060233580,-928.28415154,0.00020718,2]
[366094707,1750060233590,-928.28415154,0.00020718,2]
[366094709,1750060233600,-928.28415154,0.00020718,2]
[366094711,1750060233609,-746.0391103,0.00020718,2]
[366094713,1750060233620,-746.0391103,0.00020718,2]
[366094715,1750060233633,-746.0391103,0.00020718,2]
[366094717,1750060233643,-746.0391103,0.00020718,2]
[366094719,1750060233652,-746.0391103,0.00020718,2]
[366094721,1750060233662,-746.0391103,0.00020718,2]
[366094723,1750060233672,-746.0391103,0.00020718,2]
[366094725,1750060233682,-746.0391103,0.00020718,2]
[366094727,1750060233691,-746.0391103,0.00020718,2]
[366094729,1750060233701,-746.0391103,0.00020718,2]
[366094731,1750060233711,-746.0391103,0.00020718,2]
[366094733,1750060233721,-746.0391103,0.00020718,2]
[366094735,1750060233732,-1056.12679346,0.00020718,2]
[366094737,1750060233742,-1056.12679346,0.00020718,2]
[366094739,1750060233753,-1056.12679346,0.00020718,2]
[366094741,1750060233763,-1056.12679346,0.00020718,2]
[366094743,1750060233774,-1056.12679346,0.00020718,2]
[366094745,1750060233784,-746.03911026,0.00020718,2]
[366094747,1750060233794,-25349.93570751,0.00020719,2]
[366094749,1750060233804,-18426.93950669,0.0002072,2]
[366094751,1750060233816,-6473.06049331,0.0002072,2]
[366094753,1750060233825,-184.060435,0.00020907,2]
[366094755,1750060233836,-160.0,0.00021658,2]
[366094757,1750060233846,-250.0,0.00021691,2]
[366094759,1750060233856,-1506.88,0.00021742,2]
[366094761,1750060233866,-397.15,0.00021782,3]
[366094763,1750060233876,-198.57,0.00021782,3]
[366094765,1750060233885,-794.29,0.00021792,3]
[366094767,1750060233896,-595.75,0.00021792,3]
[366094769,1750060233906,-243.73010615,0.000218,2]
[366094771,1750060233916,-1588.59,0.00021802,3]
[366094773,1750060233926,-800.0,0.00021812,2]
[366094775,1750060233936,-1444.17,0.00021827,3]
[366094777,1750060233946,-500.0,0.00021837,2]
[366094778,1750060233956,-500.0,0.00021837,2]
[366094781,1750060233967,-500.0,0.00021837,2]
[366094782,1750060233978,-500.0,0.00021837,2]
[366094784,1750060233988,-3954.6108835,0.000219,2]
[366094786,1750060233999,-314.24108137,0.000219,6]
[366094788,1750060234009,-300.0,0.00021913,2]
[366094790,1750060234019,-203.154,0.00021914,2]
[366094792,1750060234029,-460.0,0.00021917,4]
[366094794,1750060234040,-448.58415737,0.00021917,4]
[366094796,1750060234050,-460.0,0.00021917,4]
[366094798,1750060234060,-455.10060334,0.00021917,4]
[366094800,1750060234070,-401.9669824,0.00021917,4]
[366094801,1750060234080,-460.0,0.00021917,4]
[366094803,1750060234090,-460.0,0.00021917,4]
[366094805,1750060234101,-466.39401116,0.00021917,4]
[366094807,1750060234112,-460.0,0.00021917,4]
[366094809,1750060234122,-460.0,0.00021917,4]
[366094811,1750060234132,-330.19948378,0.00021917,4]
[366094813,1750060234142,-469.47656936,0.00021917,4]
[366094815,1750060234152,-375.62521974,0.00021917,4]
[366094817,1750060234162,-373.50171981,0.00021917,4]
[366094819,1750060234172,-205.63717914,0.00021917,2]
[366094821,1750060234183,-460.0,0.00021917,4]
[366094823,1750060234193,-472.05868819,0.00021917,4]
[366094825,1750060234203,-500.0,0.00021917,4]
[366094827,1750060234213,-507.9002815,0.00021917,4]
[366094829,1750060234223,-432.57369225,0.00021917,4]
[366094831,1750060234233,-460.0,0.00021917,4]
[366094833,1750060234243,-460.0,0.00021917,4]
[366094835,1750060234253,-460.0,0.00021917,4]
[366094837,1750060234264,-443.90428159,0.00021917,4]
[366094839,1750060234274,-460.0,0.00021917,4]
[366094841,1750060234284,-460.0,0.00021917,4]
[366094843,1750060234293,-604.82293916,0.00021917,4]
[366094845,1750060234304,-433.39609244,0.00021917,4]
[366094847,1750060234314,-423.17894503,0.00021917,4]
[366094849,1750060234325,-432.71009024,0.00021917,4]
[366094851,1750060234335,-460.0,0.00021917,4]
[366094853,1750060234345,-460.0,0.00021917,4]
[366094854,1750060234355,-403.66676995,0.00021917,4]
[366094857,1750060234365,-430.0,0.00021917,4]
[366094859,1750060234376,-217.12733977,0.00021917,4]
[366094860,1750060234385,-405.68138621,0.00021917,4]
[366094862,1750060234395,-460.0,0.00021917,4]
[366094864,1750060234409,-460.0,0.00021917,4]
[366094866,1750060234419,-500.0,0.00021917,4]
[366094868,1750060234429,-500.0,0.00021917,4]
[366094870,1750060234439,-500.0,0.00021917,4]
[366094872,1750060234451,-500.0,0.00021917,4]
[366094874,1750060234460,-500.0,0.00021917,4]
[366094876,1750060234470,-203.81506949,0.00021917,4]
[366094878,1750060234480,-442.40259793,0.00021917,4]
[366094879,1750060234491,-588.26587325,0.00021917,4]
[366094880,1750060234502,-441.94514757,0.00021917,4]
[366094881,1750060234511,-370.0,0.00021917,4]
[366094882,1750060234521,-460.0,0.00021917,4]
[366094883,1750060234531,-460.0,0.00021917,4]
[366094884,1750060234551,-463.79981392,0.00021917,4]
[366094885,1750060234564,-460.0,0.00021917,4]
[366094886,1750060234575,-460.0,0.00021917,4]
[366094887,1750060234584,-460.0,0.00021917,4]
[366094888,1750060234595,-395.96097652,0.00021917,4]
[366094889,1750060234605,-460.0,0.00021917,4]
[366094890,1750060234616,-460.0,0.00021917,4]
[366094891,1750060234626,-460.0,0.00021917,4]
[366094892,1750060234636,-448.33457227,0.00021917,4]
[366094893,1750060234646,-440.0,0.00021917,4]
[366094894,1750060234656,-460.0,0.00021917,4]
[366094895,1750060234667,-458.59626898,0.00021917,4]
[366094896,1750060234677,-460.0,0.00021917,4]
[366094897,1750060234688,-460.0,0.00021917,4]
[366094898,1750060234698,-460.0,0.00021917,4]
[366094899,1750060234708,-476.08610335,0.00021917,4]
[366094900,1750060234718,-462.2185037,0.00021917,4]
[366094901,1750060234728,-274.39845458,0.00021917,4]
[366094902,1750060234739,-364.2604031,0.00021917,4]
[366094903,1750060234749,-460.0,0.00021917,4]
[366094904,1750060234759,-346.62810943,0.00021917,4]
[366094905,1750060234769,-460.0,0.00021917,4]
[366094906,1750060234779,-440.0,0.00021917,4]
[366094907,1750060234790,-460.0,0.00021917,4]
[366094908,1750060234802,-460.0,0.00021917,4]
[366094909,1750060234813,-460.0,0.00021917,4]
[366094910,1750060234822,-460.0,0.00021917,2]
[366094911,1750060234833,-460.0,0.00021917,4]
[366094912,1750060234843,-460.0,0.00021917,4]
[366094913,1750060234853,-480.84075634,0.00021917,4]
[366094914,1750060234863,-460.0,0.00021917,4]
[366094915,1750060234873,-462.40441852,0.00021917,4]
[366094916,1750060234884,-464.18859233,0.00021917,4]
[366094917,1750060234894,-460.0,0.00021917,4]
[366094918,1750060234903,-460.0,0.00021917,4]
[366094919,1750060234914,-460.0,0.00021917,4]
[366094920,1750060234924,-460.0,0.00021917,4]
[366094921,1750060234934,-379.68901285,0.00021917,4]
[366094922,1750060234945,-428.02946461,0.00021917,4]
[366094923,1750060234955,-460.0,0.00021917,4]
[366094924,1750060234965,-503.38263904,0.00021917,4]
[366094925,1750060234975,-460.0,0.00021917,4]
[366094926,1750060234985,-451.37148747,0.00021917,4]
[366094927,1750060234995,-460.0,0.00021917,4]
[366094928,1750060235005,-519.29040162,0.00021917,4]
[366094929,1750060235015,-460.0,0.00021917,4]
[366094930,1750060235025,-460.0,0.00021917,4]
[366094931,1750060235035,-460.0,0.00021917,4]
[366094932,1750060235044,-460.0,0.00021917,4]
[366094933,1750060235055,-460.0,0.00021917,4]
[366094934,1750060235065,-460.0,0.00021917,4]
[366094935,1750060235075,-460.0,0.00021917,4]
[366094936,1750060235086,-460.0,0.00021917,4]
[366094937,1750060235097,-460.0,0.00021917,4]
[366094938,1750060235107,-460.0,0.00021917,4]
[366094939,1750060235117,-460.0,0.00021917,4]
[366094940,1750060235126,-460.0,0.00021917,4]
[366094941,1750060235136,-444.90837144,0.00021917,4]
[366094942,1750060235147,-460.48032317,0.00021917,4]
[366094943,1750060235157,-460.0,0.00021917,4]
[366094944,1750060235171,-431.55068324,0.00021917,4]
[366094945,1750060235181,-460.0,0.00021917,4]
[366094946,1750060235191,-460.0,0.00021917,4]
[366094947,1750060235202,-460.0,0.00021917,4]
[366094948,1750060235213,-460.0,0.00021917,4]
[366094949,1750060235223,-460.0,0.00021917,4]
[366094950,1750060235233,-460.0,0.00021917,4]
[366094951,1750060235244,-460.0,0.00021917,4]
[366094952,1750060235254,-460.0,0.00021917,4]
[366094953,1750060235264,-451.25767631,0.00021917,4]
[366094954,1750060235274,-287.62744381,0.00021917,4]
[366094955,1750060235284,-471.35823244,0.00021917,4]
[366094956,1750060235294,-460.0,0.00021917,4]
[366094957,1750060235304,-460.0,0.00021917,4]
[366094958,1750060235315,-465.3,0.00021917,4]
[366094959,1750060235325,-460.0,0.00021917,4]
[366094960,1750060235334,-400.9247105,0.00021917,4]
[366094961,1750060235345,-460.0,0.00021917,4]
[366094962,1750060235354,-500.0,0.00021917,4]
[366094963,1750060235365,-460.0,0.00021917,4]
[366094964,1750060235375,-460.0,0.00021917,4]
[366094965,1750060235385,-500.0,0.00021917,4]
[366094966,1750060235394,-500.0,0.00021917,4]
[366094967,1750060235406,-273.98373427,0.00021917,4]
[366094968,1750060235418,-460.0,0.00021917,4]
[366094969,1750060235428,-554.35533408,0.00021917,4]
[366094970,1750060235438,-780.4,0.00021917,4]
[366094971,1750060235448,-400.41226605,0.00021917,2]
[366094972,1750060235458,-460.0,0.00021917,4]
[366094973,1750060235468,-670.23,0.00021917,4]
[366094974,1750060235479,-460.0,0.00021917,4]
[366094975,1750060235489,-460.0,0.00021917,4]
[366094976,1750060235499,-460.0,0.00021917,4]
[366094977,1750060235509,-481.58615603,0.00021917,4]
[366094978,1750060235520,-460.0,0.00021917,4]
[366094979,1750060235530,-460.0,0.00021917,4]
[366094980,1750060235540,-335.04085083,0.00021917,4]
[366094981,1750060235550,-460.0,0.00021917,4]
[366094982,1750060235559,-460.0,0.00021917,4]
[366094983,1750060235569,-466.19235766,0.00021917,4]
[366094984,1750060235579,-460.0,0.00021917,4]
[366094985,1750060235589,-441.45138604,0.00021917,4]
[366094986,1750060235599,-460.0,0.00021917,4]
[366094987,1750060235609,-460.0,0.00021917,4]
[366094988,1750060235619,-460.0,0.00021917,4]
[366094989,1750060235629,-479.58619677,0.00021917,4]
[366094990,1750060235639,-460.0,0.00021917,4]
[366094991,1750060235650,-460.0,0.00021917,4]
[366094992,1750060235660,-460.0,0.00021917,4]
[366094993,1750060235671,-460.0,0.00021917,4]
[366094994,1750060235681,-461.94028093,0.00021917,4]
[366094995,1750060235691,-466.41914392,0.00021917,4]
[366094996,1750060235701,-460.0,0.00021917,4]
[366094997,1750060235711,-460.0,0.00021917,4]
[366094998,1750060235721,-460.0,0.00021917,4]
[366094999,1750060235731,-432.44475694,0.00021917,4]
[366095000,1750060235740,-430.0,0.00021917,4]
[366095001,1750060235750,-460.0,0.00021917,4]
[366095002,1750060235760,-460.0,0.00021917,4]
[366095003,1750060235771,-460.0,0.00021917,4]
[366095004,1750060235784,-467.12335219,0.00021917,4]
[366095005,1750060235793,-511.00428479,0.00021917,4]
[366095006,1750060235803,-460.0,0.00021917,4]
[366095007,1750060235813,-864.9,0.00021917,4]
[366095008,1750060235823,-460.0,0.00021917,4]
[366095009,1750060235833,-460.0,0.00021917,4]
[366095010,1750060235843,-460.0,0.00021917,4]
[366095011,1750060235853,-460.0,0.00021917,4]
[366095012,1750060235863,-466.58907865,0.00021917,4]
[366095013,1750060235874,-460.0,0.00021917,4]
[366095014,1750060235883,-460.0,0.00021917,4]
[366095015,1750060235892,-460.0,0.00021917,4]
[366095016,1750060235902,-401.02529304,0.00021917,4]
[366095017,1750060235913,-460.0,0.00021917,4]
[366095018,1750060235923,-460.0,0.00021917,4]
[366095019,1750060235932,-460.0,0.00021917,4]
[366095020,1750060235943,-460.0,0.00021917,4]
[366095021,1750060235954,-460.0,0.00021917,4]
[366095022,1750060235963,-460.0,0.00021917,4]